[Event "German-ch Women 2024"]
[Site "Ostfildern"]
[Date "2024.08.22"]
[Round "5.10"]
[White "Sokyrko, Sofiia"]
[Black "Albayrak, Aylin"]
[Result "0-1"]
[ECO "A48"]
[WhiteElo "1585"]
[BlackElo "1741"]
[Annotator "NA RC"]
[PlyCount "56"]
[EventDate "2024.08.16"]
[EventType "tourn"]
[EventCountry "GER"]
[SourceTitle "playchess.com"]
[Source "ChessBase"]
[SourceQuality "1"]
[TimeControl "40/5400+30:1800+30"]

1. d4 {[%emt 0:00:28]} Nf6 {[%emt 0:00:08]} 2. Bf4 {[%emt 0:00:54]} g6 {[%emt 0:00:18]} 3. Nf3 {[%emt 0:03:23]} Bg7 {[%emt 0:00:24]} 4. h3 {[%emt 0:01:39]} O-O {[%emt 0:00:56]} 5. e3 {[%emt 0:00:27]} b6 {[%emt 0:03:18]} 6. a4 {[%emt 0:12:39]} a5 {[%emt 0:00:37]} 7. Be2 {[%emt 0:00:55]} Bb7 {[%emt 0:01:45]} 8. O-O {[%emt 0:02:17]} Na6 {[%emt 0:02:47]} 9. c3 {[%emt 0:02:03]} c5 {[%emt 0:02:19]} 10. Nbd2 {[%emt 0:02:43]} cxd4 {[%emt 0:05:21]} 11. exd4 {[%emt 0:00:11]} Rc8 {[%emt 0:04:58]} 12. Re1 {[%emt 0:07:18]} d6 {[%emt 0:10:16]} 13. Bf1 {[%emt 0:21:27]} Nc7 {[%emt 0:01:53]} 14. Bh2 {[%emt 0:13:56]} Ncd5 {[%emt 0:04:36]} 15. Ng5 {[%emt 0:01:45]} Bh6 {[%emt 0:05:40]} 16. Nde4 {[%emt 0:04:42]} Nxe4 {[%emt 0:02:23]} 17. Nxe4 {[%emt 0:00:09]} f5 {[%emt 0:00:55]} 18. Nd2 {[%emt 0:02:17]} Kh8 {[%emt 0:03:11]} 19. Be2 {[%emt 0:01:19]} Nf4 {[%emt 0:01:55]} 20. Nf3 {[%emt 0:12:17]} Nd5 {[%emt 0:06:06]} 21. c4 {[%emt 0:01:12]} Nf6 {[%emt 0:03:04]} 22. d5 {[%emt 0:00:21]} Ne4 {[%emt 0:01:24]} 23. Nd4 {[%emt 0:01:26]} e5 {[%emt 0:07:55]} 24. Ne6 {[%emt 0:01:36]} Qh4 {[%emt 0:00:28]} 25. Rf1 {[%emt 0:02:01]} Rf7 {[%emt 0:02:17]} 26. f4 {[%emt 0:01:12]} exf4 {[%emt 0:03:35]} 27. Bxf4 {[%emt 0:00:29]} g5 {[%emt 0:00:29]} 28. Be3 {[%emt 0:01:34]} f4 {[%emt 0:06:33]} 0-1

[Event "German-ch Women 2024"]
[Site "Ostfildern"]
[Date "2024.08.22"]
[Round "6.1"]
[White "Miljkovic, Jovana"]
[Black "Kostak, Tetyana"]
[Result "0-1"]
[ECO "A55"]
[WhiteElo "2021"]
[BlackElo "2094"]
[Annotator "NA RC"]
[PlyCount "80"]
[EventDate "2024.08.16"]
[EventType "tourn"]
[EventCountry "GER"]
[SourceTitle "playchess.com"]
[Source "ChessBase"]
[SourceQuality "1"]
[TimeControl "40/5400+30:1800+30"]

1. Nf3 {[%emt 0:00:02]} Nf6 {[%emt 0:01:28]} 2. c4 {[%emt 0:00:08]} d6 {[%emt 0:00:53]} 3. d4 {[%emt 0:00:11]} Nbd7 {[%emt 0:00:13]} 4. Nc3 {[%emt 0:00:26]} e5 {[%emt 0:00:35]} 5. e4 {[%emt 0:00:36]} Be7 {[%emt 0:01:15]} 6. Be2 {[%emt 0:01:11]} c6 {[%emt 0:00:54]} 7. d5 {[%emt 0:01:44]} Nc5 {[%emt 0:05:13]} 8. Nd2 {[%emt 0:06:22]} a5 {[%emt 0:01:58]} 9. O-O {[%emt 0:00:46]} O-O {[%emt 0:00:38]} 10. Rb1 {[%emt 0:01:17]} h6 {[%emt 0:04:26]} 11. b3 {[%emt 0:01:21]} cxd5 {[%emt 0:03:40]} 12. cxd5 {[%emt 0:01:16]} Ne8 {[%emt 0:02:29]} 13. a3 {[%emt 0:04:29]} f5 {[%emt 0:01:46]} 14. b4 {[%emt 0:01:18]} axb4 {[%emt 0:01:57]} 15. axb4 {[%emt 0:00:15]} Nxe4 {[%emt 0:00:31]} 16. Ndxe4 {[%emt 0:02:26]} fxe4 {[%emt 0:00:08]} 17. Nxe4 {[%emt 0:02:01]} Nf6 {[%emt 0:00:19]} 18. Nxf6+ {[%emt 0:06:40]} Bxf6 {[%emt 0:00:16]} 19. Bg4 {[%emt 0:04:54]} Bg5 {[%emt 0:01:13]} 20. Qe2 {[%emt 0:01:38]} Bxc1 {[%emt 0:10:28]} 21. Rbxc1 {[%emt 0:08:41]} Bxg4 {[%emt 0:06:24]} 22. Qxg4 {[%emt 0:00:10]} Rf4 {[%emt 0:00:17]} 23. Qe6+ {[%emt 0:00:19]} Kh7 {[%emt 0:00:13]} 24. b5 {[%emt 0:00:39]} Qb6 {[%emt 0:00:44]} 25. Qd7 {[%emt 0:06:19]} Ra2 {[%emt 0:03:35]} 26. Kh1 {[%emt 0:02:24]} Rfxf2 {[%emt 0:05:54]} 27. Rg1 {[%emt 0:00:28]} e4 {[%emt 0:05:26]} 28. Qe6 {[%emt 0:13:40]} Rf4 {[%emt 0:12:14]} 29. h3 {[%emt 0:05:27]} Qd4 {[%emt 0:07:14]} 30. Qxd6 {[%emt 0:08:26]} e3 {[%emt 0:00:35]} 31. Qe6 {[%emt 0:02:14]} Rf6 {[%emt 0:02:58]} 32. Qe8 {[%emt 0:06:15]} e2 {[%emt 0:03:05]} 33. Rge1 {[%emt 0:02:11]} Rf2 {[%emt 0:06:12]} 34. Qe6 {[%emt 0:01:58]} Qf4 {[%emt 0:01:11]} 35. Kg1 {[%emt 0:00:58]} Qd4 {[%emt 0:02:27]} 36. Kh2 {[%emt 0:00:37]} Rd2 {[%emt 0:00:22]} 37. d6 {[%emt 0:01:50]} Qf4+ {[%emt 0:00:44]} 38. Kg1 {[%emt 0:00:14]} Rxd6 {[%emt 0:00:27]} 39. Qa2 {[%emt 0:01:26]} Qg3 {[%emt 0:00:41]} 40. Qb1+ {[%emt 0:01:10]} Rg6 {[%emt 0:00:15]} 0-1

[Event "German-ch Women 2024"]
[Site "Ostfildern"]
[Date "2024.08.22"]
[Round "6.2"]
[White "Bluebaum, Johanna"]
[Black "Braun, Kristin"]
[Result "0-1"]
[ECO "E93"]
[WhiteElo "1994"]
[BlackElo "2001"]
[Annotator "NA RC"]
[PlyCount "66"]
[EventDate "2024.08.16"]
[EventType "tourn"]
[EventCountry "GER"]
[SourceTitle "playchess.com"]
[Source "ChessBase"]
[SourceQuality "1"]
[TimeControl "40/5400+30:1800+30"]

1. d4 {[%emt 0:00:01]} Nf6 {[%emt 0:00:05]} 2. c4 {[%emt 0:00:06]} g6 {[%emt 0:00:04]} 3. Nc3 {[%emt 0:00:04]} Bg7 {[%emt 0:00:06]} 4. e4 {[%emt 0:00:06]} d6 {[%emt 1:32:15]} 5. Nf3 {[%emt 0:01:17]} O-O {[%emt 0:00:00]} 6. Be2 {[%emt 0:00:09]} e5 {[%emt 0:00:00]} 7. d5 {[%emt 0:00:25]} a5 {[%emt 0:00:00]} 8. h3 {[%emt 0:01:13]} Na6 {[%emt 0:00:00]} 9. Be3 {[%emt 0:00:09]} Nc5 {[%emt 0:00:00]} 10. Qc2 {[%emt 0:00:37]} b6 {[%emt 0:00:00]} 11. g4 {[%emt 0:02:52]} Bd7 {[%emt 0:00:00]} 12. b3 {[%emt 0:01:19]} Qe7 {[%emt 0:00:00]} 13. Nd2 {[%emt 0:02:41]} c6 {[%emt 0:00:00]} 14. g5 {[%emt 0:03:38]} Ne8 {[%emt 0:00:00]} 15. dxc6 {[%emt 0:15:37]} Bxc6 {[%emt 0:00:00]} 16. Nd5 {[%emt 0:00:27]} Qb7 {[%emt 0:00:00]} 17. Bg4 {[%emt 0:09:23]} f5 {[%emt 0:00:00]} 18. gxf6 {[%emt 0:09:04]} Nxf6 {[%emt 0:00:00]} 19. Bxc5 {[%emt 0:14:10]} dxc5 {[%emt 0:00:00]} 20. Qc3 {[%emt 0:04:30]} Rae8 {[%emt 0:00:00]} 21. Qe3 {[%emt 0:02:45]} h5 {[%emt 0:00:00]} 22. Be2 {[%emt 0:00:24]} Kh7 {[%emt 0:00:00]} 23. Qg3 {[%emt 0:07:30]} Bh6 {[%emt 0:00:00]} 24. Qh4 {[%emt 0:01:58]} Nxd5 {[%emt 0:00:00]} 25. cxd5 {[%emt 0:02:22]} Bxd5 {[%emt 0:00:00]} 26. exd5 {[%emt 0:07:39]} Qxd5 {[%emt 0:00:00]} 27. O-O-O {[%emt 0:00:06]} Bxd2+ {[%emt 0:00:00]} 28. Rxd2 {[%emt 0:04:27]} Qxh1+ {[%emt 0:00:00]} 29. Rd1 {[%emt 0:00:06]} Qc6 {[%emt 0:00:00]} 30. Kb1 {[%emt 0:04:05]} Qf6 {[%emt 0:00:00]} 31. Qa4 {[%emt 0:01:30]} Rd8 {[%emt 0:00:00]} 32. Bd3 {[%emt 0:00:43]} Qf3 {[%emt 0:00:00]} 33. Qb5 {[%emt 0:01:05]} Qxd1+ {[%emt 0:00:00]} 0-1

[Event "German-ch Women 2024"]
[Site "Ostfildern"]
[Date "2024.08.22"]
[Round "6.3"]
[White "Staerk, Elisa"]
[Black "Bursan, Ana-Maria"]
[Result "1-0"]
[ECO "A07"]
[WhiteElo "2002"]
[BlackElo "1719"]
[Annotator "NA RC"]
[PlyCount "77"]
[EventDate "2024.08.16"]
[EventType "tourn"]
[EventCountry "GER"]
[SourceTitle "playchess.com"]
[Source "ChessBase"]
[SourceQuality "1"]
[TimeControl "40/5400+30:1800+30"]

1. d4 {[%emt 0:00:02]} d5 {[%emt 0:00:09]} 2. Nf3 {[%emt 0:00:05]} Nf6 {[%emt 0:00:25]} 3. g3 {[%emt 0:00:14]} Bg4 {[%emt 0:02:42]} 4. Bg2 {[%emt 0:02:11]} e6 {[%emt 0:02:06]} 5. O-O {[%emt 0:00:27]} Bd6 {[%emt 0:02:59]} 6. c4 {[%emt 0:00:57]} c6 {[%emt 0:02:59]} 7. cxd5 {[%emt 0:02:14]} exd5 {[%emt 0:02:44]} 8. Nc3 {[%emt 0:00:51]} Nbd7 {[%emt 0:01:44]} 9. h3 {[%emt 0:05:24]} Bxf3 {[%emt 0:05:58]} 10. Bxf3 {[%emt 0:02:35]} Qc7 {[%emt 0:04:22]} 11. Bd2 {[%emt 0:01:17]} O-O {[%emt 0:05:59]} 12. Rc1 {[%emt 0:01:29]} Qb6 {[%emt 0:04:51]} 13. e3 {[%emt 0:02:43]} Rfe8 {[%emt 1:00:02]} 14. Qc2 {[%emt 1:17:01]} Re7 {[%emt 0:00:30]} 15. a3 {[%emt 0:00:30]} a5 {[%emt 0:00:30]} 16. Rfd1 {[%emt 0:00:30]} Rae8 {[%emt 0:00:30]} 17. Bg2 {[%emt 0:00:30]} Ne4 {[%emt 0:00:00]} 18. Nxe4 dxe4 19. b4 {[%emt 0:01:00]} axb4 {[%emt 0:00:00]} 20. Bxb4 {[%emt 0:00:30]} Bxb4 {[%emt 0:00:00]} 21. axb4 {[%emt 0:00:00]} Nf6 {[%emt 0:00:00]} 22. Qc5 {[%emt 0:01:00]} Qa6 {[%emt 0:00:00]} 23. Bf1 {[%emt 0:00:00]} Qa2 {[%emt 0:00:00]} 24. Bc4 {[%emt 0:00:00]} Qa8 {[%emt 0:00:00]} 25. b5 {[%emt 0:00:00]} Qc8 {[%emt 0:00:00]} 26. bxc6 {[%emt 0:02:00]} Qxh3 {[%emt 0:00:00]} 27. Bf1 Qh6 28. c7 Ng4 {[%emt 0:00:00]} 29. Bg2 {[%emt 0:00:00]} Qf6 {[%emt 0:00:00]} 30. Qxe7 {[%emt 0:00:00]} Qxe7 {[%emt 0:00:00]} 31. c8=Q {[%emt 0:00:00]} h5 {[%emt 0:00:00]} 32. Rc7 {[%emt 0:00:00]} Qf8 {[%emt 0:00:00]} 33. Qxb7 {[%emt 0:00:00]} Rb8 {[%emt 0:00:00]} 34. Qxe4 {[%emt 0:00:00]} Qd8 {[%emt 0:00:00]} 35. Rdc1 {[%emt 0:00:00]} g6 {[%emt 0:00:00]} 36. Qe7 {[%emt 0:00:00]} Qxe7 {[%emt 0:00:00]} 37. Rxe7 {[%emt 0:00:00]} Rb2 {[%emt 0:00:00]} 38. Rf1 {[%emt 0:00:00]} Kf8 {[%emt 0:00:00]} 39. Rb7 {[%emt 0:00:00]} 1-0

[Event "German-ch Women 2024"]
[Site "Ostfildern"]
[Date "2024.08.22"]
[Round "6.4"]
[White "Wilmink, Anna"]
[Black "Just, Anita"]
[Result "0-1"]
[ECO "C02"]
[WhiteElo "1905"]
[BlackElo "1871"]
[Annotator "NA RC"]
[PlyCount "106"]
[EventDate "2024.08.16"]
[EventType "tourn"]
[EventCountry "GER"]
[SourceTitle "playchess.com"]
[Source "ChessBase"]
[SourceQuality "1"]
[TimeControl "40/5400+30:1800+30"]

1. e4 {[%emt 0:00:02]} e6 {[%emt 0:00:07]} 2. d4 {[%emt 0:00:06]} d5 {[%emt 0:00:04]} 3. e5 {[%emt 0:00:05]} c5 {[%emt 0:00:13]} 4. c3 {[%emt 0:00:05]} Qb6 {[%emt 0:00:25]} 5. Nf3 {[%emt 0:00:49]} Bd7 {[%emt 0:00:24]} 6. a3 {[%emt 0:01:55]} Bb5 {[%emt 0:02:17]} 7. Bxb5+ {[%emt 0:03:45]} Qxb5 {[%emt 0:00:06]} 8. b4 {[%emt 0:01:15]} cxd4 {[%emt 0:07:51]} 9. cxd4 {[%emt 0:00:28]} Nc6 {[%emt 0:01:54]} 10. Qe2 {[%emt 0:05:08]} Qxe2+ {[%emt 0:04:04]} 11. Kxe2 {[%emt 0:00:06]} Nge7 {[%emt 0:00:34]} 12. Kd3 {[%emt 0:02:51]} f6 {[%emt 0:03:09]} 13. Re1 {[%emt 0:02:39]} Kd7 {[%emt 0:00:44]} 14. Bd2 {[%emt 0:01:47]} Ng6 {[%emt 0:04:08]} 15. b5 {[%emt 0:01:51]} Nce7 {[%emt 0:06:06]} 16. Nc3 {[%emt 0:00:40]} Rc8 {[%emt 0:01:56]} 17. Na4 {[%emt 0:05:03]} Nf5 {[%emt 0:06:43]} 18. b6 {[%emt 0:09:32]} a6 {[%emt 0:01:04]} 19. Rac1 {[%emt 0:02:42]} Bxa3 {[%emt 0:08:20]} 20. Nc5+ {[%emt 0:05:56]} Bxc5 {[%emt 0:02:45]} 21. dxc5 {[%emt 0:00:32]} fxe5 {[%emt 0:06:15]} 22. Nxe5+ {[%emt 0:00:15]} Nxe5+ {[%emt 0:00:06]} 23. Rxe5 {[%emt 0:00:07]} Rhe8 {[%emt 0:02:27]} 24. g3 {[%emt 0:03:30]} Ne7 {[%emt 0:03:45]} 25. f4 {[%emt 0:02:45]} Nc6 {[%emt 0:01:01]} 26. Re3 {[%emt 0:04:01]} e5 {[%emt 0:06:55]} 27. fxe5 {[%emt 0:01:12]} Rxe5 {[%emt 0:00:14]} 28. Rf3 {[%emt 0:01:42]} Rce8 {[%emt 0:03:20]} 29. Bc3 {[%emt 0:04:23]} R5e7 {[%emt 0:00:42]} 30. Rd1 {[%emt 0:01:46]} Ne5+ {[%emt 0:03:12]} 31. Bxe5 {[%emt 0:00:23]} Rxe5 {[%emt 0:00:04]} 32. Rf7+ {[%emt 0:01:17]} R5e7 {[%emt 0:02:16]} 33. Rdf1 {[%emt 0:02:05]} Kc6 {[%emt 0:00:59]} 34. Kd4 {[%emt 0:00:59]} Re4+ {[%emt 0:00:20]} 35. Kd3 {[%emt 0:00:27]} Re3+ {[%emt 0:00:34]} 36. Kc2 {[%emt 0:01:38]} R8e7 {[%emt 0:00:42]} 37. R1f5 {[%emt 0:05:15]} Kxc5 {[%emt 0:01:10]} 38. Kd2 {[%emt 0:00:55]} Re2+ {[%emt 0:00:53]} 39. Kd1 {[%emt 0:00:22]} a5 {[%emt 0:00:40]} 40. Rxe7 {[%emt 0:01:58]} Rxe7 {[%emt 0:00:07]} 41. Kd2 {[%emt 0:31:03]} Rd7 {[%emt 0:30:21]} 42. Kd3 {[%emt 0:01:17]} Kxb6 {[%emt 0:00:12]} 43. Kd4 {[%emt 0:00:42]} Kb5 {[%emt 0:01:41]} 44. Ke5 {[%emt 0:01:01]} Kc6 {[%emt 0:00:37]} 45. Ke6 {[%emt 0:01:15]} Rd6+ {[%emt 0:01:50]} 46. Ke5 {[%emt 0:00:26]} d4 {[%emt 0:01:49]} 47. Rf1 {[%emt 0:01:08]} d3 {[%emt 0:01:43]} 48. Rc1+ {[%emt 0:00:31]} Kd7 {[%emt 0:00:06]} 49. Rd1 {[%emt 0:00:50]} d2 {[%emt 0:00:28]} 50. Ke4 {[%emt 0:00:51]} a4 {[%emt 0:00:27]} 51. Ke3 {[%emt 0:00:14]} b5 {[%emt 0:00:14]} 52. Ke2 {[%emt 0:00:23]} a3 {[%emt 0:00:28]} 53. Ra1 {[%emt 0:00:33]} d1=Q+ {[%emt 0:00:22]} 0-1

[Event "German-ch Women 2024"]
[Site "Ostfildern"]
[Date "2024.08.22"]
[Round "6.5"]
[White "Walker, Julia"]
[Black "Novikova, Margarita"]
[Result "1/2-1/2"]
[ECO "B01"]
[WhiteElo "1836"]
[BlackElo "1991"]
[Annotator "RC"]
[PlyCount "105"]
[EventDate "2024.08.16"]
[EventType "tourn"]
[EventCountry "GER"]
[SourceTitle "playchess.com"]
[Source "ChessBase"]
[SourceQuality "1"]
[TimeControl "40/5400+30:1800+30"]

1. e4 {[%emt 0:00:02]} d5 {[%emt 0:01:27]} 2. exd5 {[%emt 0:00:07]} Qxd5 {[%emt 0:00:06]} 3. Nf3 {[%emt 0:00:04]} Nf6 {[%emt 0:00:18]} 4. d4 {[%emt 0:00:38]} Bg4 {[%emt 0:01:34]} 5. Be2 {[%emt 0:01:04]} e6 {[%emt 0:02:51]} 6. O-O {[%emt 0:02:15]} Nc6 {[%emt 0:08:43]} 7. Re1 {[%emt 0:14:38]} O-O-O {[%emt 0:06:02]} 8. Be3 {[%emt 0:12:49]} Bxf3 {[%emt 0:07:56]} 9. Bxf3 {[%emt 0:01:06]} Qd7 {[%emt 0:00:28]} 10. c3 {[%emt 0:02:03]} e5 {[%emt 0:03:25]} 11. dxe5 {[%emt 0:13:53]} Nxe5 {[%emt 0:08:07]} 12. Bd4 {[%emt 0:03:52]} Nxf3+ {[%emt 0:03:51]} 13. Qxf3 {[%emt 0:00:07]} Qd5 {[%emt 0:01:02]} 14. Nd2 {[%emt 0:02:32]} Bc5 {[%emt 0:04:33]} 15. Qh3+ {[%emt 0:11:44]} Qd7 {[%emt 0:01:28]} 16. Qxd7+ {[%emt 0:01:03]} Rxd7 {[%emt 0:01:12]} 17. Nf3 {[%emt 0:02:02]} Bxd4 {[%emt 0:02:30]} 18. Nxd4 {[%emt 0:00:08]} Nd5 {[%emt 0:05:50]} 19. Kf1 {[%emt 0:06:53]} Nf4 {[%emt 0:01:18]} 20. Re4 {[%emt 0:05:30]} Nd3 {[%emt 0:02:52]} 21. b3 {[%emt 0:01:10]} g6 {[%emt 0:04:41]} 22. g3 {[%emt 0:03:40]} c5 {[%emt 0:06:33]} 23. Rd1 {[%emt 0:03:50]} f5 {[%emt 0:02:14]} 24. Re2 {[%emt 0:03:05]} Nxf2 {[%emt 0:04:56]} 25. Kxf2 {[%emt 0:00:29]} cxd4 {[%emt 0:02:15]} 26. cxd4 {[%emt 0:00:30]} Rhd8 {[%emt 0:00:10]} 27. Red2 {[%emt 0:00:43]} Rd5 {[%emt 0:00:50]} 28. Rc2+ {[%emt 0:04:19]} Kd7 {[%emt 0:00:38]} 29. Rdc1 {[%emt 0:01:03]} Ke6 {[%emt 0:00:16]} 30. Rc7 {[%emt 0:01:13]} R8d7 {[%emt 0:00:50]} 31. Rxd7 {[%emt 0:00:53]} Rxd7 {[%emt 0:00:31]} 32. Ke3 {[%emt 0:00:12]} b6 {[%emt 0:00:20]} 33. b4 {[%emt 0:02:09]} Kd5 {[%emt 0:00:30]} 34. a4 {[%emt 0:00:41]} Re7+ {[%emt 0:00:09]} 35. Kd3 {[%emt 0:00:10]} g5 {[%emt 0:03:07]} 36. Rf1 {[%emt 0:00:56]} Rf7 {[%emt 0:00:10]} 37. Re1 {[%emt 0:00:10]} f4 {[%emt 0:02:04]} 38. Re5+ {[%emt 0:00:32]} Kd6 {[%emt 0:00:04]} 39. gxf4 {[%emt 0:00:25]} gxf4 {[%emt 0:00:12]} 40. Ke2 {[%emt 0:00:30]} f3+ {[%emt 0:00:36]} 41. Kf2 {[%emt 0:30:46]} Rf4 {[%emt 0:30:12]} 42. Rh5 {[%emt 0:00:00]} Rxd4 {[%emt 0:00:00]} 43. Rxh7 {[%emt 0:00:00]} Rxb4 {[%emt 0:00:00]} 44. Rxa7 {[%emt 0:00:00]} Rb2+ {[%emt 0:00:00]} 45. Kxf3 {[%emt 0:00:00]} Rxh2 {[%emt 0:00:00]} 46. Ke3 {[%emt 0:00:00]} Kc5 {[%emt 0:00:00]} 47. Kd3 {[%emt 0:00:00]} Ra2 {[%emt 0:00:00]} 48. Rc7+ {[%emt 0:00:00]} Kb4 {[%emt 0:00:00]} 49. Rb7 {[%emt 0:00:00]} Kc5 {[%emt 0:00:00]} 50. Rc7+ {[%emt 0:00:00]} Kd5 {[%emt 0:00:00]} 51. Rb7 {[%emt 0:00:00]} Ra3+ {[%emt 0:00:00]} 52. Kd2 {[%emt 0:00:00]} Kc5 {[%emt 0:00:00]} 53. Rc7+ {[%emt 0:07:04]} 1/2-1/2

[Event "German-ch Women 2024"]
[Site "Ostfildern"]
[Date "2024.08.22"]
[Round "6.6"]
[White "Moeller, Hannah"]
[Black "Mader, Lena"]
[Result "1/2-1/2"]
[ECO "A39"]
[WhiteElo "1845"]
[BlackElo "1876"]
[Annotator "NA RC"]
[PlyCount "62"]
[EventDate "2024.08.16"]
[EventType "tourn"]
[EventCountry "GER"]
[SourceTitle "playchess.com"]
[Source "ChessBase"]
[SourceQuality "1"]
[TimeControl "40/5400+30:1800+30"]

1. Nf3 {[%emt 0:00:01]} Nf6 {[%emt 0:00:05]} 2. g3 {[%emt 0:00:03]} g6 {[%emt 0:00:05]} 3. Bg2 {[%emt 0:00:03]} Bg7 {[%emt 0:00:05]} 4. O-O {[%emt 0:00:06]} c5 {[%emt 0:00:51]} 5. c4 {[%emt 0:00:04]} Nc6 {[%emt 0:00:41]} 6. Nc3 {[%emt 0:00:31]} O-O {[%emt 0:00:28]} 7. d4 {[%emt 0:00:44]} cxd4 {[%emt 0:00:45]} 8. Nxd4 {[%emt 0:00:05]} Nxd4 {[%emt 0:00:25]} 9. Qxd4 {[%emt 0:00:13]} d6 {[%emt 0:01:14]} 10. Qd1 {[%emt 0:01:32]} Rb8 {[%emt 0:03:38]} 11. Bd2 {[%emt 0:01:08]} Be6 {[%emt 0:05:13]} 12. b3 {[%emt 0:01:04]} Qd7 {[%emt 0:00:54]} 13. Qc1 {[%emt 0:01:13]} Rfc8 {[%emt 0:05:19]} 14. Qa3 {[%emt 0:05:01]} a6 {[%emt 0:12:33]} 15. Rac1 {[%emt 0:03:34]} Bh3 {[%emt 0:02:21]} 16. Rfe1 {[%emt 0:10:23]} Bxg2 {[%emt 0:00:56]} 17. Kxg2 {[%emt 0:02:18]} Qc6+ {[%emt 0:11:58]} 18. Kg1 {[%emt 0:00:38]} Ne4 {[%emt 0:04:49]} 19. Nxe4 {[%emt 0:01:38]} Qxe4 {[%emt 0:00:02]} 20. Bc3 {[%emt 0:00:41]} Bh6 {[%emt 0:04:05]} 21. e3 {[%emt 0:02:17]} Rc5 {[%emt 0:09:11]} 22. Qb2 {[%emt 0:04:57]} Rbc8 {[%emt 0:00:26]} 23. Qd2 {[%emt 0:03:56]} R5c7 {[%emt 0:12:09]} 24. Bb2 {[%emt 0:01:11]} Bg7 {[%emt 0:06:07]} 25. Bd4 {[%emt 0:07:35]} h5 {[%emt 0:05:00]} 26. h4 {[%emt 0:01:37]} Bh6 {[%emt 0:02:21]} 27. Bb2 {[%emt 0:01:53]} Bg7 {[%emt 0:00:37]} 28. Bd4 {[%emt 0:01:09]} Bh6 {[%emt 0:00:07]} 29. Bb2 {[%emt 0:00:27]} Bg7 {[%emt 0:00:22]} 30. Bd4 {[%emt 0:00:42]} Bh6 {[%emt 0:02:54]} 31. Bb2 {[%emt 0:00:19]} Bg7 {[%emt 0:01:27]} 1/2-1/2

[Event "German-ch Women 2024"]
[Site "Ostfildern"]
[Date "2024.08.22"]
[Round "6.7"]
[White "Wagenschuetz, Evelyn"]
[Black "Albayrak, Aylin"]
[Result "1-0"]
[ECO "B63"]
[WhiteElo "2070"]
[BlackElo "1741"]
[Annotator "NA RC"]
[PlyCount "67"]
[EventDate "2024.08.16"]
[EventType "tourn"]
[EventCountry "GER"]
[SourceTitle "playchess.com"]
[Source "ChessBase"]
[SourceQuality "1"]
[TimeControl "40/5400+30:1800+30"]

1. e4 {[%emt 0:00:03]} c5 {[%emt 0:00:07]} 2. Nf3 {[%emt 0:00:17]} Nc6 {[%emt 0:00:45]} 3. d4 {[%emt 0:00:13]} cxd4 {[%emt 0:00:07]} 4. Nxd4 {[%emt 0:00:04]} Nf6 {[%emt 0:00:15]} 5. Nc3 {[%emt 0:00:31]} d6 {[%emt 0:01:50]} 6. Bg5 {[%emt 0:00:22]} e6 {[%emt 0:00:20]} 7. Qd2 {[%emt 0:00:36]} Be7 {[%emt 0:00:32]} 8. O-O-O {[%emt 0:01:09]} O-O {[%emt 0:00:48]} 9. Nxc6 {[%emt 0:07:41]} bxc6 {[%emt 0:00:28]} 10. Bxf6 {[%emt 0:00:10]} Bxf6 {[%emt 0:00:27]} 11. Qxd6 {[%emt 0:04:13]} Qb6 {[%emt 0:02:31]} 12. Qg3 {[%emt 0:12:51]} Rb8 {[%emt 0:02:21]} 13. b3 {[%emt 0:00:38]} Qb4 {[%emt 0:02:28]} 14. e5 {[%emt 0:03:03]} Qa3+ {[%emt 0:04:35]} 15. Kb1 {[%emt 0:02:47]} Be7 {[%emt 0:00:48]} 16. Ne4 {[%emt 0:07:00]} Bb4 {[%emt 0:05:40]} 17. Rd4 {[%emt 0:04:17]} Kh8 {[%emt 0:06:52]} 18. Nd6 {[%emt 0:08:10]} c5 {[%emt 0:06:15]} 19. Rh4 {[%emt 0:11:59]} Ba6 {[%emt 0:10:38]} 20. Qh3 {[%emt 0:04:44]} h6 {[%emt 0:04:03]} 21. Ne4 {[%emt 0:13:10]} Bd2 {[%emt 0:25:44]} 22. Nxd2 {[%emt 0:01:12]} Rfd8 {[%emt 0:00:50]} 23. Bxa6 {[%emt 0:02:52]} Rxd2 {[%emt 0:01:41]} 24. Bd3 {[%emt 0:01:39]} Kg8 {[%emt 0:10:46]} 25. Qe3 {[%emt 0:01:28]} Qa5 {[%emt 0:01:03]} 26. Rc4 {[%emt 0:01:19]} Rd8 {[%emt 0:02:09]} 27. b4 {[%emt 0:01:54]} Qb5 {[%emt 0:03:39]} 28. Qxd2 {[%emt 0:01:05]} Qxc4 {[%emt 0:00:22]} 29. Bxc4 {[%emt 0:00:06]} Rxd2 {[%emt 0:00:12]} 30. bxc5 {[%emt 0:00:15]} Kf8 {[%emt 0:00:50]} 31. c6 {[%emt 0:00:42]} Ke7 {[%emt 0:00:09]} 32. Kc1 {[%emt 0:00:22]} Rd4 {[%emt 0:00:23]} 33. Bb5 {[%emt 0:00:16]} Kd8 {[%emt 0:00:19]} 34. Rd1 {[%emt 0:00:07]} 1-0

[Event "German-ch Women 2024"]
[Site "Ostfildern"]
[Date "2024.08.22"]
[Round "6.8"]
[White "Moutaqi, Sandra"]
[Black "Noll, Sonja"]
[Result "1-0"]
[ECO "A41"]
[WhiteElo "1961"]
[BlackElo "1810"]
[Annotator "NA RC"]
[PlyCount "29"]
[EventDate "2024.08.16"]
[EventType "tourn"]
[EventCountry "GER"]
[SourceTitle "playchess.com"]
[Source "ChessBase"]
[SourceQuality "1"]
[TimeControl "40/5400+30:1800+30"]

1. d4 {[%emt 0:00:03]} d6 {[%emt 0:00:12]} 2. c4 {[%emt 0:00:13]} e5 {[%emt 0:00:13]} 3. d5 {[%emt 0:01:13]} f5 {[%emt 0:00:56]} 4. Nc3 {[%emt 0:00:31]} Nf6 {[%emt 0:00:18]} 5. g3 {[%emt 0:01:29]} Be7 {[%emt 0:00:45]} 6. Bg2 {[%emt 0:00:19]} O-O {[%emt 0:01:45]} 7. e4 {[%emt 0:01:47]} c6 {[%emt 0:02:00]} 8. Nge2 {[%emt 0:01:47]} fxe4 {[%emt 0:01:06]} 9. Nxe4 {[%emt 0:00:34]} Nxe4 {[%emt 0:06:30]} 10. Bxe4 {[%emt 0:00:13]} Qa5+ {[%emt 0:02:04]} 11. Nc3 {[%emt 0:02:52]} Bh3 {[%emt 0:04:37]} 12. Qh5 {[%emt 0:01:45]} Rxf2 {[%emt 0:05:59]} 13. Qxh7+ {[%emt 0:03:11]} Kf8 {[%emt 0:00:10]} 14. Bg6 {[%emt 0:03:50]} Bf6 {[%emt 0:00:49]} 15. Qh8+ {[%emt 0:00:17]} 1-0